bitfinex/quotes_ETHUSD_20260208
["timestamp","ask_amount","ask_price","bid_price","bid_amount"]
[1770546072372,0.1024,2106.2,2105.8,0.001]
[1770546072573,0.1024,2106.3,2105.8,0.001]
[1770546073876,3.314,2106.9,2105.8,0.9565424]
[1770546074080,0.03792458,2106.2,2106.0,0.001]
[1770546074389,1.01025068,2106.5,2106.0,0.001]
[1770546074547,0.1024,2106.4,2105.4,1.18741505]
[1770546075516,0.1024,2106.4,2105.2,0.9555424]
[1770546075691,1.18697179,2106.2,2105.4,2.14293376]
[1770546075853,1.18697179,2106.2,2105.4,0.9555424]
[1770546077762,1.18697179,2106.2,2105.4,2.14295284]
[1770546078183,1.18683662,2106.5,2105.5,0.9555424]
[1770546078489,0.1024,2106.4,2105.5,0.9555424]
[1770546080109,0.1024,2106.4,2105.7,0.9555424]
[1770546080623,0.1024,2106.4,2105.3,7.5435251]
[1770546080624,0.03792458,2106.3,2105.0,0.9555424]
[1770546080898,0.03792458,2106.0,2104.9,1.1886993]
[1770546081096,0.03792458,2106.0,2105.0,1.18763126]
[1770546081310,1.11265068,2106.3,2105.3,1.18746574]
[1770546081311,0.1024,2105.9,2105.3,1.18746574]
[1770546081480,1.1868607,2106.4,2105.3,1.18746574]
[1770546081683,1.1868607,2106.4,2105.2,1.18749646]
[1770546081884,0.1024,2106.3,2105.3,1.18746954]
[1770546082271,1.18697179,2106.2,2105.2,0.9555424]
[1770546082467,1.28937179,2106.2,2105.2,0.9555424]
[1770546083475,0.1024,2106.1,2104.9,0.9565424]
[1770546084278,1.18708452,2106.0,2104.9,2.14421352]
[1770546084477,1.28948452,2106.0,2104.9,0.9565424]
[1770546084705,0.1024,2106.0,2105.0,0.9555424]
[1770546085205,0.1024,2106.0,2105.0,0.99346698]
[1770546085410,0.1024,2106.0,2104.5,1.18790226]
[1770546085411,0.03792458,2105.9,2104.5,1.18790226]
[1770546085703,0.03792458,2105.3,2104.2,0.9555424]
[1770546085903,0.9723261,2105.5,2104.4,1.18795676]
[1770546086203,0.9723261,2105.5,2104.4,1.1879603]
[1770546086204,0.32601307,2105.4,2104.4,1.1879603]
[1770546086399,1.18747921,2105.3,2104.2,4.75232383]
[1770546086702,1.28987921,2105.3,2104.2,4.75232383]
[1770546086881,0.1024,2105.3,2104.3,0.9555424]
[1770546087480,0.1024,2105.3,2105.1,0.001]
[1770546087874,1.5134544,2105.4,2104.3,0.9565424]
[1770546088079,0.1014,2105.3,2104.3,0.9565424]
[1770546088277,1.0737261,2105.3,2104.3,0.001]
[1770546088477,1.18753562,2105.2,2104.3,0.001]
[1770546088682,1.18753562,2105.2,2104.3,0.9565424]
[1770546088904,0.1014,2105.1,2104.3,0.9565424]
[1770546089183,0.32601307,2105.4,2104.3,0.9565424]
[1770546089394,0.32601307,2105.4,2104.5,0.9555424]
[1770546089828,0.42741307,2105.4,2104.5,0.9555424]
[1770546090113,0.42741307,2105.4,2104.3,0.001]
[1770546090114,0.9723261,2105.2,2104.3,0.001]
[1770546090318,1.01025068,2105.1,2104.3,0.001]
[1770546090487,1.18764845,2105.0,2104.3,0.001]
[1770546090694,1.28902181,2105.1,2104.3,0.001]
[1770546091994,0.32465257,2105.2,2104.7,0.03792458]
[1770546092189,0.32465257,2105.2,2104.4,0.99346698]
[1770546092515,1.18729321,2105.7,2104.8,1.1877613]
[1770546092696,0.1014,2105.7,2104.8,2.1433037]
[1770546094400,0.1014,2105.7,2104.3,0.001]
[1770546094401,0.03792458,2105.3,2104.3,0.001]
[1770546094608,4.50753562,2105.2,2104.3,0.001]
[1770546095489,0.1014,2105.1,2104.3,0.001]
[1770546097507,0.1014,2105.1,2104.4,0.95915948]
[1770546097713,1.18719726,2105.8,2104.5,0.99708406]
[1770546098100,0.1014,2105.7,2104.5,0.95915948]
[1770546098287,1.10080395,2105.7,2104.3,0.001]
[1770546098886,1.18731003,2105.6,2104.3,2.148203]
[1770546099308,0.99940395,2104.9,2103.9,5.0]
[1770546099612,0.99940395,2104.8,2103.8,1.18829428]
[1770546099782,1.09980395,2104.8,2104.5,0.001]
[1770546099987,1.09980395,2104.8,2104.5,9.826e-05]
[1770546100195,0.99940395,2104.8,2104.5,9.826e-05]
[1770546100406,0.99940395,2104.8,2103.7,1.18837658]
[1770546100609,0.10030174,2104.7,2103.7,1.18837658]
[1770546100812,1.09970569,2104.7,2103.6,0.001]
[1770546101005,1.18787418,2104.6,2103.6,0.001]
[1770546101820,0.99940395,2104.4,2103.6,0.001]
[1770546102026,0.99940395,2104.4,2102.6,3.32]
[1770546102027,0.99940395,2103.6,2101.3,2.35619703]
[1770546102192,6.97874638,2103.7,2101.4,6.06856206]
[1770546102193,0.03892458,2103.2,2101.4,6.06856206]
[1770546102500,0.99940395,2103.4,2101.8,0.95915948]
[1770546102700,0.99940395,2103.4,2102.4,0.03792458]
[1770546102902,1.18855186,2103.4,2102.4,1.22699453]
[1770546103120,1.18855186,2103.4,2102.4,1.22702089]
[1770546103423,1.18815645,2104.1,2103.3,0.03792458]
[1770546103620,1.18815645,2104.1,2103.0,0.03792458]
[1770546103621,1.18815645,2104.1,2103.4,0.03792458]
[1770546103828,0.99940395,2104.0,2102.7,0.03792458]
[1770546103999,0.99940395,2104.0,2101.8,0.95915948]
[1770546104339,0.99940395,2103.5,2101.6,0.99708406]
[1770546104549,0.99940395,2103.5,2101.4,7.93874638]
[1770546104550,0.99940395,2103.1,2101.4,5.71872299]
[1770546104686,0.99940395,2103.1,2101.5,0.03792458]
[1770546104889,0.99940395,2103.1,2101.9,1.18938865]
[1770546105088,2.18818188,2103.0,2101.6,1.1895363]
[1770546105393,2.18818188,2103.0,2101.4,1.18964894]
[1770546105394,0.99940395,2102.9,2101.4,1.18964894]
[1770546105590,0.99940395,2102.9,2101.5,1.18962124]
[1770546105810,0.99940395,2102.9,2101.0,6.97874638]
[1770546106012,0.99940395,2102.9,2101.4,1.18968236]
[1770546106211,0.99940395,2102.9,2101.5,0.03792458]
[1770546106426,0.1024,2102.8,2101.1,0.1407271]
[1770546106595,0.99940395,2102.7,2101.2,1.18979425]
[1770546106795,0.99940395,2102.7,2101.1,0.1407271]
[1770546107030,0.99940395,2102.5,2101.2,0.03792458]
[1770546107245,0.99940395,2103.7,2102.4,0.03792458]
[1770546107393,0.99940395,2103.9,2102.4,7.01667096]
[1770546107741,0.99940395,2103.9,2102.4,0.03792458]
[1770546108031,0.99940395,2103.9,2102.2,0.95915948]
[1770546108194,0.99940395,2103.7,2101.9,0.03792458]
[1770546108396,0.1024,2103.2,2101.0,4.75941173]
[1770546108698,0.99940395,2102.8,2101.2,0.03792458]
[1770546109099,1.18894754,2102.7,2101.3,1.18973968]
[1770546109937,1.18894754,2102.7,2101.5,0.03792458]
[1770546110145,0.99940395,2102.8,2101.6,6.97874638]
[1770546110342,0.99940395,2103.7,2102.4,0.03792458]
[1770546110572,0.99940395,2103.7,2102.5,6.97874638]
[1770546110712,0.99940395,2103.7,2102.4,0.03792458]
[1770546110923,0.99940395,2104.1,2102.7,0.03792458]
[1770546111233,2.22548498,2104.1,2102.8,1.188891]
[1770546111814,0.99940395,2104.0,2102.7,1.18891087]
[1770546112615,6.97874638,2103.2,2101.2,4.75896902]
[1770546112819,0.99940395,2103.0,2101.5,0.001]
[1770546113135,0.99940395,2102.8,2101.5,0.001]
[1770546113346,0.93506142,2102.8,2101.5,0.001]
[1770546113674,1.18866489,2103.2,2101.7,0.03792458]
[1770546113952,1.18866489,2103.2,2101.5,0.001]
[1770546114318,1.18866489,2103.2,2101.7,0.03792458]
[1770546114949,1.18866489,2103.2,2101.5,0.96015948]
[1770546115154,1.18866489,2103.2,2101.8,1.18945665]
[1770546116759,0.99940395,2103.1,2101.7,1.18949785]
[1770546117125,1.18877793,2103.0,2101.6,4.75808553]
[1770546117332,1.18865976,2103.3,2102.0,0.03792458]
[1770546117629,1.18843586,2103.7,2102.3,0.03792458]
[1770546117955,1.18836412,2103.8,2102.3,0.03792458]
[1770546118575,2.18776807,2103.8,2102.3,0.03792458]
[1770546118851,2.18776807,2103.8,2101.7,0.03792458]
[1770546118852,0.99940395,2103.3,2101.7,0.03792458]
[1770546119056,0.99940395,2103.3,2101.5,5.71821248]
[1770546119057,0.99940395,2103.0,2101.5,4.759053]
[1770546119222,2.18823714,2103.0,2101.5,4.759053]
[1770546120144,5.51095581,2103.5,2101.8,0.03792458]
[1770546120342,0.99940395,2103.3,2101.5,4.79697758]
[1770546120542,0.99940395,2103.3,2101.5,4.759053]
[1770546121254,0.99940395,2102.9,2101.5,0.001]
[1770546121629,0.99940395,2102.7,2101.5,0.001]
[1770546123140,1.18877793,2103.0,2101.5,0.001]
[1770546123141,0.99940395,2102.5,2101.5,0.001]
[1770546123350,0.99940395,2102.3,2101.5,0.001]
[1770546123726,0.99940395,2102.4,2101.5,0.001]
[1770546123934,1.03732853,2102.4,2101.5,0.001]
[1770546124236,0.99940395,2102.4,2101.5,0.001]
[1770546124534,1.18909956,2102.5,2101.1,1.99170726]
[1770546124742,5.75525666,2102.7,2101.1,1.99170726]
[1770546125365,0.99940395,2102.6,2101.1,1.99170726]
[1770546125765,0.99940395,2102.6,2101.3,0.001]
[1770546125968,1.18894754,2102.8,2098.7,2.36806557]
[1770546125969,0.62991682,2101.1,2098.7,2.36806557]
[1770546126166,0.1024,2100.0,2099.0,1.19103636]
[1770546126467,0.03792458,2099.8,2099.2,0.01452213]
[1770546126633,1.47709653,2099.7,2099.0,1.19101372]
[1770546126829,1.47709653,2099.7,2098.7,1.19115983]
[1770546126830,2.74117617,2099.7,2098.7,1.19115983]
[1770546127032,2.7619385,2099.6,2099.2,0.03792458]
[1770546127230,0.22263894,2100.1,2099.2,0.03792458]
[1770546127444,1.19047619,2100.0,2098.9,0.03792458]
[1770546127730,1.23088083,2100.0,2099.0,1.19103348]
[1770546128036,1.23088083,2100.0,2098.7,0.98835527]
[1770546128236,1.02438616,2099.9,2098.1,4.76605368]
[1770546128459,4.37532155,2099.8,2098.9,1.19109679]
[1770546128665,1.05032151,2099.7,2098.8,1.19111643]
[1770546128853,0.04040451,2099.6,2098.3,0.98835527]
[1770546129232,0.03792458,2099.5,2098.3,0.98835527]
[1770546129430,0.03792458,2099.5,2098.4,4.76549212]
[1770546129759,0.07832909,2099.6,2098.4,5.75384739]
[1770546130130,1.26904831,2099.6,2098.4,5.75384739]
[1770546130341,1.26904831,2099.6,2098.4,1.19138391]
[1770546130552,0.03792458,2099.3,2098.4,1.19138391]
[1770546130865,0.0404043,2099.5,2098.4,1.19138391]
[1770546131371,1.19081642,2099.4,2098.1,4.76613637]
[1770546131540,0.01452213,2099.4,2098.1,5.75449164]
[1770546132438,0.01452213,2099.4,2098.2,0.98835527]
[1770546132681,0.04040405,2099.6,2098.2,1.02627985]
[1770546132979,0.04040405,2099.6,2098.5,0.98835527]
[1770546133341,0.04040405,2099.6,2098.6,1.19127037]
[1770546134672,1.23111965,2099.6,2098.6,1.19127037]
[1770546134885,0.04039775,2099.5,2098.6,1.19127037]
[1770546135089,0.61006353,2098.4,2096.5,0.9603404]
[1770546135250,3.42824854,2098.3,2097.0,1.1921793]
[1770546135603,0.3635012,2098.2,2097.1,1.19212245]
[1770546135885,0.06083877,2098.1,2097.0,2.1525197]
[1770546136047,0.06083877,2098.1,2097.0,1.1921793]
[1770546136243,0.96019675,2098.0,2096.7,4.76921611]
[1770546136437,0.06083865,2097.9,2096.8,1.19226255]
[1770546136645,0.03792458,2097.7,2096.8,1.1922523]
[1770546136947,0.33904758,2097.8,2097.0,1.19216702]
[1770546137143,0.33904758,2097.8,2096.7,4.76930703]
[1770546137341,0.33904758,2097.8,2097.0,1.19216721]
[1770546137545,1.53077793,2097.8,2096.6,4.76958204]
[1770546137767,0.06083837,2097.7,2096.6,4.76958204]
[1770546138271,0.06083837,2097.7,2096.5,1.19240675]
[1770546139073,0.06083837,2097.7,2097.1,0.001]
[1770546140490,0.06083837,2097.7,2096.5,0.1024]
[1770546140491,0.03792458,2097.6,2093.8,2.32294075]
[1770546140794,0.03792458,2096.1,2094.5,1.19360229]
[1770546140986,0.03792458,2096.6,2094.5,1.19360229]
[1770546140987,0.06086094,2096.0,2094.5,2.15394269]
[1770546141287,0.92227217,2096.1,2094.3,4.77440916]
[1770546141446,0.96019675,2096.0,2094.4,4.77440916]
[1770546141641,0.03792458,2095.7,2094.4,4.77440916]
[1770546141884,0.03792458,2095.6,2094.4,4.77440916]
[1770546142185,0.03792458,2095.6,2094.0,4.77486511]
[1770546142186,0.03792458,2095.0,2093.3,0.9603404]
[1770546142345,0.96019675,2095.9,2094.2,1.19375572]
[1770546142750,0.32267301,2096.0,2094.6,0.9603404]
[1770546142972,0.7,2095.7,2094.7,7.7222]
[1770546143293,0.92227217,2096.4,2094.6,4.2903404]
[1770546143452,0.03792458,2096.2,2094.7,1.19348832]
[1770546143645,1.23056628,2096.2,2094.7,1.19348832]
[1770546143888,0.06086039,2096.7,2094.7,1.19348832]
[1770546143889,0.92227217,2096.1,2094.7,1.19348832]
[1770546144068,0.92227217,2096.4,2094.7,1.19348832]
[1770546144382,0.09878486,2096.3,2094.7,1.19348832]
[1770546144567,0.09878486,2096.3,2094.7,4.52348832]
[1770546144771,0.96019675,2095.7,2093.9,4.77555842]
[1770546144967,0.96019675,2095.7,2092.5,1.61794918]
[1770546144968,0.92227217,2094.9,2093.6,4.77642925]
[1770546145172,0.32669139,2094.8,2094.6,1.19353605]
[1770546145373,0.32669139,2094.8,2093.7,4.77620108]
[1770546145752,0.32669139,2094.8,2093.8,3.52090798]
[1770546145981,0.96019675,2095.9,2094.1,0.03792458]
[1770546146179,0.06085998,2095.8,2094.1,3.36892458]
[1770546146764,0.98313215,2095.8,2094.1,3.331]
[1770546146966,0.0846883,2095.7,2094.1,3.331]
[1770546147364,0.0846883,2095.7,2094.2,8.4344994]
[1770546147666,0.0846883,2095.7,2094.4,1.19365928]
[1770546148066,2.15269257,2096.5,2094.6,6.819911]
[1770546148265,0.06085962,2096.1,2094.6,6.819911]
[1770546148465,0.06085962,2096.1,2094.8,0.03792458]
[1770546148785,0.09878411,2096.4,2094.6,9.6295844]
[1770546149087,0.06085951,2096.3,2094.6,0.9603404]
[1770546149457,0.03792458,2094.7,2093.2,2.3984462]
[1770546149770,0.03792458,2095.5,2093.7,1.19405836]
[1770546149974,0.3264308,2095.4,2093.7,3.59334043]
[1770546150181,0.03792458,2095.7,2093.9,0.9603404]
[1770546150362,0.14175701,2095.9,2094.2,0.03792458]
[1770546150559,0.14175701,2095.9,2093.7,1.19405836]
[1770546150560,0.03792458,2095.5,2093.7,1.19405836]
[1770546150882,0.03792458,2095.2,2093.7,1.19405836]
[1770546151083,0.14175668,2095.2,2093.7,1.19405836]
[1770546151261,0.96019675,2095.1,2093.7,1.19405836]
[1770546151457,0.96019675,2095.1,2093.3,4.77623346]
[1770546151458,1.19348832,2094.7,2092.8,4.77818994]
[1770546151661,0.08087419,2094.6,2092.9,3.1772]
[1770546152064,0.11879877,2094.6,2092.9,0.9603404]
[1770546152393,0.11879877,2094.6,2092.8,4.77818994]
[1770546152394,0.03792458,2094.3,2092.8,4.77818994]
[1770546152999,0.96019675,2094.3,2093.9,0.001]
[1770546153155,0.92227217,2094.3,2092.8,4.77818994]
[1770546153358,0.03792458,2094.6,2092.2,1.19487021]
[1770546153359,0.27149488,2093.5,2092.2,1.19487021]
[1770546153580,0.04044865,2093.4,2091.8,0.03792458]
[1770546153782,0.04044865,2093.4,2091.3,1.23335326]
[1770546153783,0.92227217,2093.2,2091.4,0.03792458]
[1770546153984,0.92227217,2093.0,2091.3,1.23335326]
[1770546154199,0.06092813,2093.0,2091.5,0.03792458]
[1770546154359,0.06092813,2093.0,2091.3,1.19542868]
[1770546154555,0.06092813,2093.0,2091.3,1.14542868]
[1770546154556,0.03792458,2092.7,2091.3,1.14542868]
[1770546154770,0.03792458,2092.4,2091.3,1.14542868]
[1770546154989,0.03792458,2092.3,2091.3,1.14542868]
[1770546155289,0.96271466,2092.7,2091.3,1.14542868]
[1770546155501,0.03792458,2091.9,2091.3,1.14542868]
[1770546155792,0.03792458,2091.9,2090.6,4.7831718]
[1770546155999,0.03792458,2091.9,2090.2,4.78331579]
[1770546156000,1.03164268,2091.6,2089.5,0.98048915]
[1770546156173,0.03792458,2091.0,2088.9,0.98048915]
[1770546156362,0.03792458,2091.6,2088.9,0.98048915]
[1770546156363,0.04044228,2091.6,2090.5,1.19586235]
[1770546156562,0.7,2091.4,2090.5,1.19586235]
[1770546156988,0.04044228,2091.6,2090.5,1.19586235]
[1770546157193,0.03792458,2091.9,2090.5,1.19586235]
[1770546157492,0.04044207,2092.1,2090.5,1.19586235]
[1770546157692,0.03792458,2091.9,2090.4,4.7835446]
[1770546157993,0.04044207,2092.1,2090.4,4.7835446]
[1770546158194,0.04044207,2092.1,2090.5,3.959613]
[1770546158363,0.04044207,2092.1,2091.1,6.286067]
[1770546158563,0.04044207,2092.1,2091.2,3.336]
[1770546158984,0.03792458,2092.8,2091.3,11.785066]
[1770546159293,0.03792458,2092.5,2091.3,2.627231]
[1770546159462,0.03792458,2092.5,2091.2,3.336]
[1770546159787,0.03792458,2092.2,2091.3,1.19542868]
[1770546159996,0.03792458,2092.5,2091.3,1.19542868]
[1770546160207,1.23267946,2092.5,2091.3,1.19542868]
[1770546160490,1.23250787,2092.8,2091.3,1.19542868]
[1770546160690,0.03792458,2092.4,2091.3,1.19542868]
[1770546161186,0.9937181,2092.9,2091.3,1.19542868]
[1770546161386,0.18224092,2093.1,2091.4,4.783539]
[1770546161900,0.18224092,2093.1,2091.0,4.8196393]
[1770546161901,1.03164268,2091.7,2090.3,4.78397676]
[1770546162119,0.03792458,2092.7,2090.9,4.78259918]
[1770546162120,0.9937181,2092.2,2090.9,4.78259918]
[1770546162401,0.9937181,2092.2,2090.1,4.78440538]
[1770546162402,0.03792458,2091.0,2090.1,4.78440538]
[1770546162571,7.125419,2091.5,2090.1,4.82232996]
[1770546163269,7.125419,2091.5,2090.1,4.78440538]
[1770546163670,0.03792458,2091.8,2090.1,4.78440538]
[1770546163671,0.03792458,2091.4,2090.1,4.78440538]
[1770546164681,7.125419,2091.5,2090.1,4.78440538]
[1770546164874,0.03792458,2091.3,2090.0,1.19617224]
[1770546165196,0.03792458,2091.8,2090.0,1.19617224]
[1770546165498,0.03792458,2091.5,2090.1,3.339]
[1770546165702,0.03792458,2091.5,2090.2,1.19605779]
[1770546166203,3.281,2092.9,2090.2,1.19605779]
[1770546166204,0.06092632,2091.9,2090.4,0.98048915]
[1770546166493,0.06092632,2091.9,2091.1,0.98048915]
[1770546166689,0.03792458,2092.8,2091.3,7.00444]
[1770546166886,1.19451492,2092.9,2091.3,7.98492915]
[1770546167195,1.19451492,2092.9,2090.7,3.90479]
[1770546167196,0.03792458,2092.1,2090.7,3.90479]
[1770546167489,0.9937181,2092.8,2090.7,3.62973915]
[1770546167697,0.9937181,2092.8,2090.9,5.839026]
[1770546167698,0.03792458,2092.6,2090.9,5.839026]
[1770546167875,0.03792458,2092.5,2091.0,1.19560019]
[1770546168200,0.03792458,2092.2,2091.0,1.19560019]
[1770546169113,0.03792458,2091.9,2091.0,1.19560019]
[1770546169268,0.03792458,2092.2,2091.0,1.19560019]
[1770546169475,0.03792458,2091.9,2091.0,1.19560019]
[1770546169671,0.32563952,2092.4,2091.0,1.19560019]
[1770546169872,0.32563952,2092.4,2090.9,4.78540076]
[1770546170083,1.52044155,2092.4,2090.9,4.78540076]
[1770546170287,0.03792458,2092.2,2090.9,4.78540076]
[1770546170484,0.03792458,2091.9,2091.0,3.34]
[1770546171077,0.03792458,2092.1,2091.0,3.34]
[1770546171279,0.03792458,2091.8,2090.9,0.003]
[1770546171475,0.03792458,2091.8,2090.9,3.343]
[1770546171808,0.03792458,2091.7,2090.9,3.343]
[1770546172105,0.03792458,2090.5,2089.7,4.78536222]
[1770546172273,0.03792458,2091.1,2090.4,1.19594336]
[1770546172475,0.03792458,2090.7,2090.4,1.19594336]
[1770546172674,0.03792458,2091.1,2090.4,1.19594336]
[1770546173007,0.03792458,2090.8,2090.2,1.19601508]
[1770546173179,0.03792458,2091.1,2090.2,1.19600518]
[1770546173378,0.03792458,2091.1,2090.1,4.78432097]
[1770546173379,0.03792458,2091.1,2090.1,1.19607219]
[1770546173581,0.03792458,2091.1,2090.1,1.19607591]
[1770546173887,0.03792458,2090.8,2090.1,1.19607833]
[1770546174309,0.03792458,2090.5,2089.9,3.34]
[1770546174480,0.03792458,2090.5,2090.0,1.19616883]
[1770546175010,0.03792458,2090.0,2088.4,0.1407271]
[1770546175198,0.03792458,2089.9,2089.1,4.78673582]
[1770546175503,0.03792458,2089.9,2089.2,1.19663028]
[1770546175705,0.03792458,2089.5,2089.2,1.19663028]
[1770546175903,0.03792458,2089.9,2089.2,1.19663028]
[1770546176104,0.03792458,2090.3,2089.2,1.19663028]
[1770546176404,0.03792458,2090.0,2089.1,4.53764913]
[1770546176603,1.19609427,2090.2,2089.1,4.53767449]
[1770546176807,0.03792458,2090.1,2089.1,1.19663946]
[1770546177017,0.03792458,2089.5,2089.1,1.19667546]
[1770546177188,0.03792458,2089.2,2088.6,4.78781443]
[1770546177388,0.03792458,2089.0,2088.4,1.3377846]
[1770546177590,0.03792458,2089.3,2088.4,1.3377846]
[1770546177820,0.03792458,2089.0,2088.4,1.3377846]
[1770546177985,0.03792458,2089.3,2088.4,1.3377846]
[1770546178319,1.19617224,2090.0,2088.4,1.3377846]
[1770546178501,0.03792458,2089.7,2088.4,1.3377846]
[1770546178702,1.19617224,2090.0,2088.5,5.367826]
[1770546179027,0.03792458,2090.8,2088.6,0.98048915]
[1770546179187,1.23343531,2091.2,2089.3,0.98048915]
[1770546179516,0.03792458,2091.5,2089.8,0.98048915]
[1770546179679,2.1889547,2091.7,2089.9,3.587663]
[1770546179887,0.03792458,2091.6,2090.0,4.692013]
[1770546180082,0.03792458,2091.5,2090.0,4.692013]
[1770546180416,0.32563952,2092.4,2091.0,0.98048915]
[1770546180611,0.03792458,2093.6,2091.6,3.06]
[1770546180816,0.03792458,2092.8,2091.6,2.036877]
[1770546180980,0.002,2091.9,2091.7,3.343]
[1770546181295,0.03792458,2093.0,2091.7,3.343]
[1770546181619,0.03792458,2093.0,2091.2,3.343]
[1770546181620,0.03792458,2091.7,2091.2,3.343]
[1770546181786,0.03792458,2091.6,2091.2,3.343]
[1770546181987,0.03792458,2092.0,2091.2,3.343]
[1770546182213,0.03792458,2091.4,2091.2,3.343]
[1770546182513,0.03792458,2091.7,2091.2,3.343]
[1770546182714,0.03792458,2091.4,2091.2,4.53848488]
[1770546182887,0.03792458,2091.7,2091.2,4.53848488]
[1770546183298,0.03792458,2092.1,2091.2,4.53848488]
[1770546183502,0.03792458,2091.8,2091.2,4.53848488]
[1770546183816,0.03792458,2092.1,2091.2,4.53848488]
[1770546183817,0.03792458,2091.4,2091.2,3.343]
[1770546184198,0.03792458,2091.4,2089.9,12.6222753]
[1770546184415,1.03164268,2092.1,2090.3,4.581]
[1770546184603,0.03792458,2091.8,2090.3,4.581]
[1770546184914,0.03792458,2091.8,2090.3,3.00884]
[1770546185120,0.03792458,2091.8,2090.2,3.342]
[1770546185809,0.03792458,2091.8,2090.3,3.46471]
[1770546186009,0.03792458,2091.5,2090.3,2.31379]
[1770546186218,0.03792458,2091.8,2090.3,3.90771257]
[1770546186532,0.03792458,2091.8,2090.4,2.923569]
[1770546186829,0.03792458,2091.7,2090.4,2.35763]
[1770546187300,0.03792458,2091.4,2090.3,1.19600057]
[1770546187507,0.03792458,2091.8,2090.4,3.342]
[1770546187709,1.01151626,2091.7,2090.4,3.342]
[1770546187911,0.03792458,2091.8,2090.4,3.342]
[1770546188331,0.03792458,2091.5,2090.5,1.19588615]
[1770546188534,0.03792458,2091.2,2090.5,1.19588615]
[1770546188837,0.03792458,2091.1,2090.5,3.342]
[1770546188999,0.03792458,2091.5,2090.5,3.342]
[1770546189536,0.03792458,2091.8,2090.5,3.342]
[1770546189718,0.03792458,2091.5,2090.5,3.342]
[1770546190441,1.23309356,2091.8,2090.6,1.19582894]
[1770546190599,1.01225099,2091.7,2090.6,1.19582894]
[1770546190798,1.23309356,2091.8,2090.6,1.19582894]
[1770546191006,1.04981068,2091.7,2090.6,1.19582894]
[1770546191208,0.03792458,2091.9,2090.6,1.19582894]
[1770546191503,0.03792458,2091.6,2090.6,1.19582894]
[1770546191698,0.03792458,2091.7,2090.6,1.19582894]
[1770546191932,0.03792458,2091.4,2090.6,1.19582894]
[1770546192449,0.03792458,2091.0,2090.6,1.19582894]
[1770546192743,0.03792458,2091.3,2090.7,3.342]
[1770546192941,1.01240906,2091.2,2090.7,3.342]
[1770546193244,0.03792458,2091.0,2090.7,3.342]
[1770546193441,0.03792458,2091.3,2090.7,3.342]
[1770546193750,1.01226404,2091.2,2090.7,3.342]
[1770546193911,0.03792458,2091.3,2090.7,3.342]
[1770546194221,1.01219065,2091.2,2090.7,3.342]
[1770546194537,0.03792458,2091.3,2090.7,3.342]
[1770546194721,0.002,2091.5,2090.7,4.53775399]
[1770546195041,1.01233976,2091.4,2090.7,4.53775399]
[1770546195208,0.002,2091.5,2090.7,4.53775399]
[1770546195608,1.0121854,2091.4,2090.7,4.53775399]
[1770546195808,0.002,2091.5,2090.7,4.53775399]
[1770546196036,0.03792458,2091.3,2090.7,4.53775399]
[1770546196219,0.03792458,2091.3,2090.8,3.342]
[1770546196417,0.002,2091.5,2090.8,3.342]
[1770546196620,0.03792458,2091.3,2090.9,1.19565737]
[1770546196836,0.002,2091.5,2090.9,1.19565737]
[1770546197038,1.01190491,2091.4,2090.9,1.19565737]
[1770546197213,0.002,2091.5,2090.9,1.19565737]
[1770546198927,0.03792458,2091.1,2090.8,1.19571261]
[1770546199246,0.03792458,2091.1,2090.5,0.001]
[1770546199247,0.03792458,2090.8,2090.6,1.19580153]
[1770546199545,0.03792458,2090.5,2090.4,3.342]
[1770546199747,0.03792458,2090.2,2089.7,1.19634397]
[1770546199913,0.03792458,2090.2,2089.6,1.1993638]
[1770546199914,0.03792458,2089.9,2089.6,1.1993638]
[1770546200113,0.03792458,2090.5,2089.6,1.1993638]
[1770546200314,1.01169882,2090.4,2089.6,1.1993638]
[1770546200508,0.03792458,2090.5,2089.6,1.1993638]
[1770546200715,1.23402594,2090.2,2089.6,0.003]
[1770546201022,4.78347475,2090.6,2089.6,0.003]
[1770546201023,0.03792458,2090.7,2089.6,0.003]
[1770546201344,0.03792458,2090.3,2089.7,3.342]
[1770546201514,0.03792458,2090.2,2089.7,3.342]
[1770546201711,0.03792458,2090.6,2089.7,3.342]
[1770546201940,0.03792458,2090.3,2089.7,3.342]
[1770546202240,0.03792458,2091.0,2089.7,3.342]
[1770546202444,0.03792458,2090.7,2089.7,3.342]
[1770546202747,1.01163333,2090.6,2089.7,3.342]
[1770546203043,0.03792458,2090.5,2089.8,1.19628672]
[1770546203565,0.03792458,2090.5,2088.4,0.1407271]
[1770546203566,0.03792458,2089.4,2088.4,0.1407271]
[1770546203858,0.03792458,2089.2,2088.4,1.33780857]
[1770546204153,0.03792458,2089.7,2088.4,1.33780857]
[1770546204355,0.03792458,2089.7,2088.4,2.44069403]
[1770546204718,0.03792458,2090.1,2088.4,2.44069403]
[1770546204941,0.03792458,2089.8,2088.5,1.10288546]
[1770546205119,1.01011563,2089.7,2088.6,1.19697404]
[1770546205327,0.03792458,2089.5,2088.6,1.19697404]
[1770546205528,0.03792458,2090.4,2088.8,1.10288546]
[1770546205731,0.03792458,2090.4,2088.6,1.19697404]
[1770546205732,0.03792458,2089.7,2088.6,1.19697404]
[1770546205953,0.03792458,2090.0,2088.7,4.04439146]
[1770546206151,0.03792458,2090.0,2088.8,1.10288546]
[1770546206329,0.03792458,2089.7,2088.6,1.19697404]
[1770546206524,0.03792458,2090.1,2088.6,1.19697404]
[1770546206731,0.03792458,2089.8,2088.7,1.10288546]
[1770546206929,0.03792458,2090.1,2088.7,1.10288546]
[1770546207130,0.03792458,2089.8,2088.8,1.19685944]
[1770546207556,0.03792458,2090.1,2086.4,2.39015334]
[1770546207557,0.03792458,2089.1,2086.4,2.39015334]
[1770546207744,0.03792458,2089.1,2084.2,0.1442471]
[1770546207745,0.73550117,2086.6,2084.9,2.30198373]
[1770546207945,0.73550117,2086.6,2085.3,1.10288546]
[1770546208151,0.73550117,2086.6,2085.1,3.43401857]
[1770546208473,0.03792458,2086.4,2085.3,1.94634]
[1770546208761,0.03792458,2086.4,2085.2,1.10288546]
[1770546208762,0.35,2086.3,2085.2,1.10288546]
[1770546209147,0.03792458,2086.4,2085.3,1.19886826]
[1770546209362,0.03792458,2086.3,2085.3,1.19886826]
[1770546209524,1.9336382,2086.6,2085.3,1.19886826]
[1770546209726,0.35,2085.9,2084.5,0.03792458]
[1770546210030,0.35,2085.9,2085.2,1.19892417]
[1770546210362,0.35,2086.1,2085.2,1.19888547]
[1770546211158,0.35,2085.8,2085.0,1.19904076]
[1770546211453,0.35,2085.9,2085.3,3.345]
[1770546211657,0.03792458,2086.2,2085.3,3.345]
[1770546211864,0.35,2086.0,2085.3,3.345]
[1770546212037,1.97156414,2086.6,2085.3,3.345]
[1770546212454,0.77342575,2086.6,2085.3,3.345]